bitfinex-derivatives/quotes_BTCF0:USTF0_20250322
["timestamp","ask_amount","ask_price","bid_price","bid_amount"]
[1742615518267,0.19745702,84265.0,84264.0,1.98479409]
[1742615519565,0.09052702,84265.0,84264.0,1.98479409]
[1742615520468,0.05670703,84265.0,84264.0,2.05638969]
[1742615520669,0.03381999,84265.0,84264.0,2.05638969]
[1742615520972,8e-05,84266.0,84265.0,0.1187183]
[1742615521170,8e-05,84266.0,84265.0,0.3893983]
[1742615521468,0.17780386,84266.0,84265.0,0.4538983]
[1742615523068,0.17780386,84266.0,84265.0,0.4558983]
[1742615524961,0.17780386,84266.0,84265.0,0.5689783]
[1742615526473,0.17780386,84266.0,84265.0,0.4558983]
[1742615526675,0.17780386,84266.0,84265.0,0.5689383]
[1742615528667,0.17780386,84266.0,84265.0,0.85282868]
[1742615529874,0.15476387,84266.0,84265.0,0.85282868]
[1742615531279,0.12589387,84266.0,84265.0,0.85282868]
[1742615531887,0.12589387,84266.0,84265.0,0.5689383]
[1742615534168,0.11220387,84266.0,84265.0,0.5689383]
[1742615534374,0.09478388,84266.0,84265.0,0.5689383]
[1742615535077,0.12748388,84266.0,84265.0,0.5689383]
[1742615535279,0.10947388,84266.0,84265.0,0.5689383]
[1742615535581,0.03931388,84266.0,84265.0,0.5689383]
[1742615536372,0.03931388,84266.0,84265.0,1.2905383]
[1742615539883,0.00661388,84266.0,84265.0,1.2905383]
[1742615540080,0.031,84267.0,84266.0,0.1187169]
[1742615540275,0.031,84267.0,84266.0,0.3793169]
[1742615540470,0.20945702,84267.0,84266.0,0.4449169]
[1742615541378,0.20945702,84267.0,84266.0,0.4459169]
[1742615541782,0.20945702,84267.0,84266.0,0.4469169]
[1742615542486,0.19245702,84267.0,84266.0,0.4469169]
[1742615546885,0.0311,84278.0,84277.0,0.1187014]
[1742615547075,0.03206001,84278.0,84277.0,0.8630214]
[1742615547274,0.13812154,84278.0,84277.0,0.9258214]
[1742615547470,0.13908155,84278.0,84277.0,0.9258214]
[1742615547979,0.13908155,84278.0,84277.0,0.8951214]
[1742615548182,0.13908155,84278.0,84277.0,0.7832014]
[1742615548485,0.13908155,84278.0,84277.0,0.8961214]
[1742615548685,0.13908155,84278.0,84277.0,0.8650214]
[1742615549482,0.13812154,84278.0,84277.0,0.5042214]
[1742615550077,0.17092154,84278.0,84277.0,0.5042214]
[1742615551481,0.17092154,84278.0,84277.0,0.5365214]
[1742615552883,0.17092154,84278.0,84277.0,0.5698214]
[1742615555188,0.17092154,84278.0,84277.0,0.4569014]
[1742615555380,0.17092154,84278.0,84277.0,0.5698214]
[1742615556786,0.17092154,84278.0,84277.0,0.4569014]
[1742615556992,0.17092154,84278.0,84277.0,0.5698214]
[1742615563896,0.17092154,84278.0,84277.0,0.4569014]
[1742615564086,0.17092154,84278.0,84277.0,0.5697814]
[1742615565592,0.17092154,84278.0,84277.0,0.4569014]
[1742615565798,0.17092154,84278.0,84277.0,0.5697814]
[1742615584113,0.17092154,84278.0,84277.0,0.9305814]
[1742615584503,0.06546501,84278.0,84277.0,0.9305814]
[1742615584709,0.02320823,84299.0,84286.0,0.1186887]
[1742615584909,0.1186788,84294.0,84286.0,0.8730487]
[1742615585219,0.0615,84293.0,84286.0,0.8730487]
[1742615585418,0.14227471,84287.0,84286.0,0.9030487]
[1742615585612,0.14227471,84287.0,84286.0,0.9345487]
[1742615585812,0.14323472,84287.0,84286.0,0.9345487]
[1742615586013,0.17523472,84287.0,84286.0,0.94783359]
[1742615586210,0.17623472,84287.0,84286.0,0.83495359]
[1742615586401,0.20933472,84287.0,84286.0,0.94783359]
[1742615586608,0.20837471,84287.0,84286.0,0.94783359]
[1742615586913,0.20941472,84287.0,84286.0,0.94783359]
[1742615590318,0.20837471,84287.0,84286.0,0.94783359]
[1742615596022,0.20937471,84287.0,84286.0,0.94783359]
[1742615596228,0.20937471,84287.0,84286.0,0.58703359]
[1742615596419,0.20937471,84287.0,84286.0,0.94783359]
[1742615596719,0.20937471,84287.0,84286.0,0.58703359]
[1742615597028,0.20937471,84287.0,84286.0,0.94783359]
[1742615597520,0.20837471,84287.0,84286.0,0.83495359]
[1742615597726,0.20933472,84287.0,84286.0,0.94783359]
[1742615601621,0.17623472,84287.0,84286.0,0.94783359]
[1742615601828,0.17527471,84287.0,84286.0,0.94783359]
[1742615602322,0.17527471,84287.0,84286.0,0.83495359]
[1742615602517,0.17627471,84287.0,84286.0,0.94783359]
[1742615602719,0.17527471,84287.0,84286.0,0.83495359]
[1742615602923,0.20733472,84287.0,84286.0,0.94783359]
[1742615603517,0.20733472,84287.0,84286.0,0.83495359]
[1742615603718,0.20733472,84287.0,84286.0,0.94783359]
[1742615604429,0.20733472,84287.0,84286.0,0.83495359]
[1742615604633,0.20733472,84287.0,84286.0,0.94783359]
[1742615605426,0.20733472,84287.0,84286.0,0.58703359]
[1742615605732,0.20733472,84287.0,84286.0,0.94783359]
[1742615609227,0.20733472,84287.0,84286.0,0.58703359]
[1742615616740,0.20733472,84287.0,84286.0,1.44895359]
[1742615616933,0.20637471,84287.0,84286.0,1.44895359]
[1742615618740,0.20741472,84287.0,84286.0,1.44895359]
[1742615618931,0.20637471,84287.0,84286.0,1.44895359]
[1742615620941,0.20733472,84287.0,84286.0,1.44895359]
[1742615621131,0.20637471,84287.0,84286.0,1.44895359]
[1742615621942,0.17527471,84287.0,84286.0,1.44895359]
[1742615629248,0.17527471,84287.0,84286.0,1.33607359]
[1742615629440,0.17527471,84287.0,84286.0,1.44895359]
[1742615632746,0.17527471,84287.0,84286.0,1.33607359]
[1742615632941,0.17527471,84287.0,84286.0,1.44895359]
[1742615635251,0.17527471,84287.0,84286.0,1.33607359]
[1742615635446,0.17527471,84287.0,84286.0,1.44895359]
[1742615635847,0.14427471,84287.0,84286.0,1.44895359]
[1742615636043,0.04519954,84312.0,84286.0,1.33026489]
[1742615636341,0.0609,84305.0,84304.0,0.1186634]
[1742615636542,0.0609,84305.0,84304.0,0.2325834]
[1742615636943,0.06186001,84305.0,84304.0,0.2947834]
[1742615637159,0.0609,84305.0,84304.0,0.2947834]
[1742615637346,0.06186001,84305.0,84304.0,0.2947834]
[1742615637543,0.0927,84305.0,84304.0,0.2947834]
[1742615637955,0.09366001,84305.0,84304.0,0.2947834]
[1742615638149,0.09866001,84305.0,84304.0,0.2947834]
[1742615638751,0.10366001,84305.0,84304.0,0.2947834]
[1742615639144,0.01096001,84305.0,84304.0,0.5347834]
[1742615639347,0.02320823,84324.0,84312.0,0.1186521]
[1742615639554,0.0959,84323.0,84312.0,1.6948521]
[1742615639855,0.17870424,84313.0,84312.0,1.7895521]
[1742615640850,0.18170424,84313.0,84312.0,1.7895521]
[1742615641450,0.18470424,84313.0,84312.0,1.7895521]
[1742615648152,0.18470424,84313.0,84312.0,1.6766721]
[1742615648353,0.18470424,84313.0,84312.0,1.7895121]
[1742615648550,0.21540424,84313.0,84312.0,1.7895121]
[1742615649055,0.33405494,84313.0,84312.0,0.9811721]
[1742615649361,0.39843494,84313.0,84312.0,1.0940121]
[1742615649950,0.27978424,84313.0,84312.0,1.1569121]
[1742615650148,0.27910424,84313.0,84312.0,1.1569121]
[1742615650354,0.27978424,84313.0,84312.0,1.1569121]
[1742615650549,0.24860424,84313.0,84312.0,1.3969121]
[1742615651161,0.18470424,84313.0,84312.0,1.3969121]
[1742615657667,0.21720424,84313.0,84312.0,1.3969121]
[1742615658860,0.21720424,84313.0,84312.0,1.2840721]
[1742615659060,0.21720424,84313.0,84312.0,1.3969121]
[1742615659655,0.27840424,84313.0,84312.0,1.2840721]
[1742615659868,0.27840424,84313.0,84312.0,1.3969121]
[1742615663270,0.27840424,84313.0,84312.0,1.2840721]
[1742615663457,0.27840424,84313.0,84312.0,1.3969121]
[1742615664175,0.27840424,84313.0,84312.0,1.2840721]
[1742615664372,0.27840424,84313.0,84312.0,1.3969121]
[1742615664872,0.27840424,84313.0,84312.0,1.7577121]
[1742615667183,0.27840424,84313.0,84312.0,1.3969121]
[1742615667364,0.27840424,84313.0,84312.0,1.7577121]
[1742615668172,0.27840424,84313.0,84312.0,1.6448721]
[1742615668478,0.27840424,84313.0,84312.0,1.7577121]
[1742615671375,0.18470424,84313.0,84312.0,1.7577121]
[1742615671769,0.21590424,84313.0,84312.0,1.7577121]
[1742615671970,0.06867795,84313.0,84312.0,1.7577121]
[1742615675479,0.00617795,84313.0,84312.0,1.7577121]
[1742615681986,0.00617795,84313.0,84312.0,2.04174142]
[1742615682206,0.00617795,84313.0,84312.0,1.68094142]
[1742615682383,0.00617795,84313.0,84312.0,2.40254142]
[1742615683190,0.00617795,84313.0,84312.0,1.68094142]
[1742615683489,0.00617795,84313.0,84312.0,2.40254142]
[1742615685290,0.00617795,84313.0,84312.0,2.1185121]
[1742615688396,0.00617795,84313.0,84312.0,1.3969121]
[1742615688586,0.00617795,84313.0,84312.0,2.1185121]
[1742615689492,8e-05,84314.0,84313.0,0.1186507]
[1742615689703,8e-05,84314.0,84313.0,0.4815907]
[1742615690094,8e-05,84314.0,84313.0,0.5944307]
[1742615690596,0.00308,84314.0,84313.0,0.5944307]
[1742615690794,0.00608,84314.0,84313.0,0.5944307]
[1742615691188,0.00608,84314.0,84313.0,0.87829808]
[1742615693594,0.00608,84314.0,84313.0,1.59989808]
[1742615693799,0.00608,84314.0,84313.0,1.3160307]
[1742615696890,0.02944945,84315.0,84314.0,0.1186493]
[1742615697097,0.02944945,84315.0,84314.0,0.3892493]
[1742615697396,0.02944945,84315.0,84314.0,0.4520493]
[1742615698095,0.03244945,84315.0,84314.0,0.4520493]
[1742615698300,0.03444945,84315.0,84314.0,0.4520493]
[1742615698999,0.03344945,84315.0,84314.0,0.4520493]
[1742615699693,0.03344945,84315.0,84314.0,0.73591668]
[1742615700398,0.03344945,84315.0,84314.0,0.84875668]
[1742615700597,0.06364945,84315.0,84314.0,0.84875668]
[1742615701095,0.06364945,84315.0,84314.0,0.84871668]
[1742615701688,0.004,84315.0,84314.0,0.84871668]
[1742615701893,0.004,84315.0,84314.0,0.88201668]
[1742615702691,0.004,84315.0,84314.0,1.60361668]
[1742615703996,0.004,84315.0,84314.0,1.57031668]
[1742615708303,0.004,84315.0,84314.0,1.45751668]
[1742615708493,0.004,84315.0,84314.0,1.57031668]
[1742615709895,0.004,84315.0,84314.0,1.2864493]
[1742615710606,0.004,84315.0,84314.0,1.1736493]
[1742615710807,0.004,84315.0,84314.0,1.2864493]
[1742615711396,0.004,84315.0,84314.0,1.1736493]
[1742615711701,0.004,84315.0,84314.0,1.2864493]
[1742615712221,0.004,84315.0,84314.0,1.1736493]
[1742615712398,0.004,84315.0,84314.0,1.2864493]
[1742615714395,0.004,84315.0,84314.0,1.1736493]
[1742615714595,0.004,84315.0,84314.0,1.2864493]
[1742615715397,0.004,84315.0,84314.0,2.1479693]
[1742615718197,0.004,84315.0,84314.0,2.0351693]
[1742615718398,0.004,84315.0,84314.0,1.6743693]
[1742615718603,0.004,84315.0,84314.0,1.7871693]
[1742615719400,0.004,84315.0,84314.0,1.7243693]
[1742615720606,0.002,84315.0,84314.0,1.7563693]
[1742615720809,0.002,84315.0,84314.0,1.7603693]
[1742615721002,0.1801427,84319.0,84318.0,0.1186437]
[1742615721195,0.1809027,84319.0,84318.0,0.1186437]
[1742615721407,0.35815076,84319.0,84318.0,0.1193237]
[1742615722401,0.35815076,84319.0,84318.0,0.1213237]
[1742615723702,0.23950806,84319.0,84318.0,0.1213237]
[1742615724106,0.23950806,84319.0,84318.0,0.2361237]
[1742615724410,0.0899199,84321.0,84320.0,0.1186408]
[1742615724411,0.0306,84321.0,84320.0,0.1186408]
[1742615724709,0.03132,84321.0,84320.0,0.2322008]
[1742615724909,0.11790556,84321.0,84320.0,0.2631008]
[1742615725111,0.23654496,84321.0,84320.0,0.2631008]
[1742615725309,0.23726496,84321.0,84320.0,0.2631008]
[1742615725815,0.23726496,84321.0,84320.0,0.2641008]
[1742615726814,0.23726496,84321.0,84320.0,0.1512608]
[1742615727005,0.23726496,84321.0,84320.0,0.2641008]
[1742615727217,0.23726496,84321.0,84320.0,0.2651008]
[1742615727596,0.29516496,84321.0,84320.0,0.2651008]
[1742615727997,0.32846496,84321.0,84320.0,0.2651008]
[1742615729909,0.32846496,84321.0,84320.0,1.1266208]
[1742615730705,0.38614957,84321.0,84320.0,1.1266208]
[1742615740625,0.59951168,84321.0,84320.0,1.1266208]
[1742615742627,0.59951168,84321.0,84320.0,1.1597208]
[1742615742925,0.56621168,84321.0,84320.0,1.1597208]
[1742615743226,0.53951168,84321.0,84320.0,1.1597208]
[1742615744927,0.32614957,84321.0,84320.0,1.1597208]
[1742615745520,0.29494957,84321.0,84320.0,1.1597208]
[1742615749826,0.29494957,84321.0,84320.0,1.3997208]
[1742615750824,0.23726496,84321.0,84320.0,1.3997208]
[1742615753227,0.29494893,84321.0,84320.0,1.3997208]
[1742615755131,0.29494893,84321.0,84320.0,1.16828]
[1742615755439,0.29494893,84321.0,84255.0,9.2094187]
[1742615755440,0.1186605,84306.0,84304.0,0.01242442]
[1742615755730,0.4801005,84306.0,84305.0,0.32633107]
[1742615755929,0.65768859,84306.0,84305.0,0.32633107]
[1742615756124,0.77628371,84306.0,84305.0,0.32633107]
[1742615756521,0.77628371,84306.0,84305.0,0.33133107]
[1742615756836,0.83318371,84306.0,84305.0,0.39573107]
[1742615758135,0.83318371,84306.0,84305.0,0.39577107]
[1742615758521,0.83318371,84306.0,84305.0,0.40077107]
[1742615759127,0.83318371,84306.0,84305.0,0.28793107]
[1742615759331,0.83318371,84306.0,84305.0,0.40077107]
[1742615759532,0.88271107,84306.0,84305.0,0.40077107]
[1742615759731,0.88271107,84306.0,84305.0,0.28793107]
[1742615760023,0.88271107,84306.0,84305.0,0.40077107]
[1742615760928,1.00618861,84306.0,84305.0,0.18788]
[1742615761128,1.00618861,84306.0,84305.0,0.18724]
[1742615762536,0.98131953,84306.0,84305.0,0.18788]
[1742615762940,0.98131953,84306.0,84305.0,0.18724]
[1742615764436,1.00547115,84306.0,84305.0,0.18724]
[1742615765340,1.00547115,84306.0,84305.0,0.0744]
[1742615765527,1.00547115,84306.0,84305.0,0.18724]
[1742615765730,0.98131953,84306.0,84305.0,0.18724]
[1742615766334,0.98041272,84306.0,84305.0,0.0744]
[1742615766533,0.98041272,84306.0,84305.0,0.18724]
[1742615766734,0.98041272,84306.0,84305.0,0.11284]
[1742615766934,0.118662,84305.0,84304.0,0.12526442]
[1742615767134,0.14313347,84305.0,84304.0,0.12526442]
[1742615767329,0.35595266,84305.0,84304.0,0.01242442]
[1742615767534,0.35595266,84305.0,84304.0,0.11284]
[1742615767842,0.47457029,84305.0,84304.0,0.12532262]
[1742615768228,1.19617029,84305.0,84304.0,0.13032262]
[1742615768434,1.21992176,84305.0,84304.0,0.13032262]
[1742615769543,1.21992176,84305.0,84304.0,0.13432262]
[1742615770032,1.21992176,84305.0,84304.0,0.02148262]
[1742615770230,1.21992176,84305.0,84304.0,0.13432262]
[1742615770639,1.27762727,84305.0,84304.0,0.13432262]
[1742615779334,0.91682727,84305.0,84304.0,0.13432262]
[1742615779539,1.27762727,84305.0,84304.0,0.13432262]
[1742615779750,1.3025052,84305.0,84304.0,0.13432262]
[1742615781346,0.5809052,84305.0,84304.0,0.13432262]
[1742615781540,1.27875373,84305.0,84304.0,0.13432262]
[1742615781741,1.3025052,84305.0,84304.0,0.13432262]
[1742615782138,1.42875604,84305.0,84304.0,0.13432262]
[1742615785146,1.42875604,84305.0,84304.0,0.06754036]
[1742615786143,1.57599129,84305.0,84304.0,0.06754036]
[1742615786343,1.57599129,84305.0,84304.0,0.07975847]
[1742615787651,0.85439129,84305.0,84304.0,0.07975847]
[1742615787845,1.52736189,84305.0,84304.0,0.07975847]
[1742615788052,1.55111336,84305.0,84304.0,0.07975847]
[1742615788452,1.57599129,84305.0,84304.0,0.07975847]
[1742615788751,0.85439129,84305.0,84304.0,0.07975847]
[1742615788951,1.55223982,84305.0,84304.0,0.07975847]
[1742615789148,1.57599129,84305.0,84304.0,0.07975847]
[1742615789456,1.74483771,84305.0,84304.0,0.07975847]
[1742615794256,1.54929129,84305.0,84304.0,0.07975847]
[1742615795049,1.54929129,84305.0,84304.0,0.02423256]
[1742615796942,1.51699129,84305.0,84304.0,0.02423256]
[1742615797555,1.54789129,84305.0,84304.0,0.02423256]
[1742615800556,1.18709129,84305.0,84304.0,0.02423256]
[1742615802161,1.35248588,84305.0,84304.0,0.02423256]
[1742615805064,1.35248588,84305.0,84304.0,0.01221811]
[1742615805361,1.18709129,84305.0,84304.0,0.01221811]
[1742615805559,1.18709129,84305.0,84304.0,0.07801811]
[1742615808863,0.82629129,84305.0,84304.0,0.07801811]
[1742615809064,1.16333982,84305.0,84304.0,0.07801811]
[1742615809265,1.18709129,84305.0,84304.0,0.07801811]
[1742615810458,1.21939129,84305.0,84304.0,0.07801811]
[1742615811567,1.18709129,84305.0,84304.0,0.07801811]
[1742615815866,1.21949129,84305.0,84304.0,0.07801811]
[1742615816372,1.19573982,84305.0,84304.0,0.07801811]
[1742615816869,1.19573982,84305.0,84304.0,0.19085811]
[1742615819454,1.21769162,84305.0,84304.0,0.19085811]
[1742615829169,1.07045637,84305.0,84304.0,0.19085811]
[1742615832677,1.31969255,84305.0,84304.0,0.19085811]
[1742615836567,1.21530056,84305.0,84304.0,0.19085811]
[1742615838183,0.91506294,84305.0,84304.0,0.30952151]
[1742615838483,0.8678912,84305.0,84304.0,0.31012151]
[1742615838685,0.9865532,84305.0,84304.0,0.31012151]
[1742615840093,0.48090901,84305.0,84304.0,0.31012151]
[1742615841995,0.48090901,84305.0,84304.0,0.19145811]
[1742615842196,0.51180901,84305.0,84304.0,0.19145811]
[1742615843193,0.51180901,84305.0,84304.0,0.31012151]
[1742615843798,0.48090901,84305.0,84304.0,0.31012151]
[1742615844996,0.4232035,84305.0,84304.0,0.31012151]
[1742615852397,0.3045415,84305.0,84304.0,0.31012151]
[1742615852597,0.17829066,84305.0,84304.0,0.31012151]
[1742615857211,0.29695266,84305.0,84304.0,0.31012151]
[1742615857502,0.33005266,84305.0,84304.0,0.31012151]
[1742615857708,0.29695266,84305.0,84304.0,0.31012151]
[1742615858618,0.17829066,84305.0,84304.0,0.31012151]
[1742615859715,0.35600451,84305.0,84304.0,0.31012151]
[1742615862911,0.17829066,84305.0,84304.0,0.31012151]
[1742615865119,0.17829066,84305.0,84304.0,0.31008151]
[1742615865821,0.17829066,84305.0,84304.0,0.19728151]
[1742615866032,0.17829066,84305.0,84304.0,0.31008151]
[1742615870122,0.21029066,84305.0,84304.0,0.31008151]
[1742615870322,0.21029066,84305.0,84304.0,1.17180151]
[1742615870527,0.38800451,84305.0,84304.0,1.17180151]
[1742615870914,0.38800451,84305.0,84304.0,1.20440151]
[1742615873423,0.21029066,84305.0,84304.0,1.20440151]
[1742615876523,0.17829066,84305.0,84304.0,1.20440151]
[1742615876715,0.17757066,84305.0,84304.0,1.20440151]
[1742615876919,0.17821066,84305.0,84304.0,1.20440151]
[1742615877817,0.24051066,84305.0,84304.0,1.20440151]
[1742615881014,0.41841554,84305.0,84304.0,1.20440151]
[1742615882229,0.41841554,84305.0,84304.0,1.09160151]
[1742615882429,0.41841554,84305.0,84304.0,1.20440151]
[1742615884633,0.24051066,84305.0,84304.0,1.20440151]
[1742615884833,0.24051066,84305.0,84304.0,1.05900151]
[1742615885031,0.24051066,84305.0,84304.0,1.17180151]
[1742615887430,0.35917266,84305.0,84304.0,1.17180151]
[1742615888234,0.47847056,84305.0,84304.0,1.17180151]
[1742615891839,0.35917266,84305.0,84304.0,1.17180151]
[1742615894941,0.57264176,84305.0,84304.0,1.17180151]
[1742615895131,0.57264176,84305.0,84304.0,1.20360151]
[1742615895331,0.45397976,84305.0,84304.0,1.20360151]
[1742615895738,0.39167976,84305.0,84304.0,1.20360151]
[1742615897145,0.42397976,84305.0,84304.0,1.20360151]
[1742615898240,0.45587976,84305.0,84304.0,1.20360151]
[1742615898541,0.57454176,84305.0,84304.0,1.20360151]
[1742615898739,0.24241066,84305.0,84304.0,1.20360151]
[1742615909355,0.36107266,84305.0,84304.0,1.20360151]
[1742615911866,0.36107266,84305.0,84304.0,1.09080151]
[1742615912068,0.36107266,84305.0,84304.0,1.20360151]
[1742615912758,0.36107266,84305.0,84304.0,1.09080151]
[1742615912958,0.36107266,84305.0,84304.0,1.20360151]
[1742615918865,0.84049029,84305.0,84304.0,0.87453811]
[1742615919166,0.1186718,84298.0,84296.0,0.00017795]
[1742615919468,0.5745732,84297.0,84296.0,0.00989999]
[1742615919769,0.75257352,84297.0,84296.0,0.01584169]
[1742615919971,0.75257352,84297.0,84296.0,0.11365795]
[1742615920173,0.75257352,84297.0,84296.0,0.23233255]
[1742615920373,0.75257352,84297.0,84296.0,0.23533255]
[1742615920668,0.75257352,84297.0,84296.0,0.11665795]
[1742615921071,0.75257352,84297.0,84296.0,0.11965795]
[1742615921461,0.75257352,84297.0,84296.0,0.25349257]
[1742615921673,0.75357352,84297.0,84296.0,0.25349257]
[1742615922171,0.75357352,84297.0,84296.0,0.17019257]
[1742615922471,0.75457352,84297.0,84296.0,0.28599257]
[1742615923062,0.87335282,84297.0,84296.0,0.0635006]
[1742615923264,0.89544384,84297.0,84296.0,0.1763006]
[1742615923569,1.01407272,84297.0,84296.0,0.0310006]
[1742615923760,1.01407272,84297.0,84296.0,0.13413797]
[1742615924273,1.01407272,84297.0,84296.0,0.02133797]
[1742615924461,1.01407272,84297.0,84296.0,0.13413797]
[1742615925069,1.01407272,84297.0,84296.0,0.13473797]
[1742615927067,0.89529342,84297.0,84296.0,0.13473797]
[1742615927464,0.89529342,84297.0,84296.0,0.02193797]
[1742615927672,0.89529342,84297.0,84296.0,0.02133797]
[1742615928376,0.89529342,84297.0,84296.0,0.02193797]
[1742615928969,0.1186859,84289.0,84288.0,0.2314853]
[1742615929271,0.1186859,84289.0,84288.0,0.2637853]
[1742615929479,0.29648795,84289.0,84288.0,0.2637853]
[1742615929681,0.41611683,84289.0,84288.0,0.27250986]
[1742615929983,0.48031683,84289.0,84288.0,0.15382456]
[1742615930171,0.48131683,84289.0,84288.0,0.15682456]
[1742615930364,0.48131683,84289.0,84288.0,0.17141186]
[1742615930567,0.65885911,84289.0,84288.0,0.17141186]
[1742615931975,0.65985911,84289.0,84288.0,0.17241186]
[1742615933877,0.48231683,84289.0,84288.0,0.17241186]
[1742615936168,0.48231683,84289.0,84288.0,0.20511186]
[1742615941980,0.48231683,84289.0,84288.0,0.32379776]
[1742615942479,0.48231683,84289.0,84288.0,0.20511186]
[1742615944082,0.65985911,84289.0,84288.0,0.20511186]
[1742615944879,0.65985911,84289.0,84288.0,0.32379776]
[1742615945880,0.65985911,84289.0,84288.0,0.20511186]
[1742615946394,0.47703023,84289.0,84288.0,0.20511186]
[1742615946987,0.50823023,84289.0,84288.0,0.20511186]
[1742615947295,0.33068795,84289.0,84288.0,0.32379776]
[1742615954297,0.33068795,84289.0,84288.0,0.20511186]
[1742615954799,0.36288795,84289.0,84288.0,0.20511186]
[1742615956000,0.36288795,84289.0,84288.0,0.32379776]
[1742615956698,0.36288795,84289.0,84288.0,0.20511186]
[1742615957998,0.36288795,84289.0,84288.0,0.32379776]
[1742615961710,0.48344615,84289.0,84288.0,0.32379776]
[1742615962400,0.48344615,84289.0,84288.0,0.21099776]
[1742615962707,0.48344615,84289.0,84288.0,0.32379776]
[1742615977217,0.48344615,84289.0,84288.0,0.32375776]
[1742615980321,0.48344615,84289.0,84288.0,0.21099776]
[1742615980619,0.48344615,84289.0,84288.0,0.32375776]
[1742615982332,0.48344615,84289.0,84288.0,0.21099776]
[1742615982624,0.48344615,84289.0,84288.0,0.32375776]
[1742615985225,0.48344615,84289.0,84288.0,0.21099776]
[1742615985427,0.48344615,84289.0,84288.0,0.32375776]
[1742615985820,0.48344615,84289.0,84288.0,0.20507186]
[1742615992229,0.42004615,84289.0,84288.0,0.32375776]
[1742615992923,0.48184615,84289.0,84288.0,0.32375776]
[1742615993432,0.48184615,84289.0,84288.0,0.20507186]
[1742615995326,0.48184615,84289.0,84288.0,0.32375776]
[1742615996023,0.48184615,84289.0,84288.0,0.20507186]
[1742615996323,0.48184615,84289.0,84288.0,0.09231186]
[1742615996523,0.48184615,84289.0,84288.0,0.20507186]
[1742615998833,0.48184615,84289.0,84288.0,0.32375776]
[1742616003329,0.48184615,84289.0,84288.0,0.20507186]
[1742616003525,0.60048629,84289.0,84288.0,0.0518873]
[1742616003725,0.1186957,84281.0,84270.0,0.28385476]
[1742616003929,0.4804957,84281.0,84280.0,0.11361795]
[1742616004134,0.65863397,84281.0,84280.0,0.11361795]
[1742616004527,0.87328537,84281.0,84280.0,0.11361795]
[1742616005031,0.87328537,84281.0,84280.0,0.13982537]
[1742616005537,0.87428537,84281.0,84280.0,0.13982537]
[1742616006138,0.87528537,84281.0,84280.0,0.13982537]
[1742616007134,0.87528537,84281.0,84280.0,0.02706537]
[1742616007435,0.87528537,84281.0,84280.0,0.13982537]
[1742616008030,0.87528537,84281.0,84280.0,0.02706537]
[1742616008233,0.99584357,84281.0,84280.0,0.13982537]
[1742616008433,1.0192066,84281.0,84280.0,0.13982537]
[1742616012030,0.8986484,84281.0,84280.0,0.13982537]
[1742616012228,0.87528537,84281.0,84280.0,0.02706537]
[1742616012435,0.87528537,84281.0,84280.0,0.13982537]
[1742616013030,0.87528537,84281.0,84280.0,0.25852257]
[1742616013231,0.87528537,84281.0,84280.0,0.13982537]
[1742616014935,1.08861025,84281.0,84280.0,0.13982537]
[1742616015236,1.1115474,84281.0,84280.0,0.13982537]
[1742616016330,1.0806474,84281.0,84280.0,0.13982537]
[1742616016639,1.05771025,84281.0,84280.0,0.13982537]
[1742616018344,0.69691025,84281.0,84280.0,0.13982537]
[1742616021840,0.48358537,84281.0,84280.0,0.13982537]
[1742616024240,0.48358537,84281.0,84280.0,0.02706537]
[1742616024441,0.48358537,84281.0,84280.0,0.13982537]
[1742616025042,0.48358537,84281.0,84280.0,0.02706537]
[1742616025244,0.48358537,84281.0,84280.0,0.13982537]
[1742616027652,0.45058537,84281.0,84280.0,0.13982537]
[1742616028649,0.48158537,84281.0,84280.0,0.13982537]
[1742616032755,0.48158537,84281.0,84280.0,0.02706537]
[1742616032955,0.48158537,84281.0,84280.0,0.13982537]
[1742616033158,0.69491025,84281.0,84280.0,0.20192537]
[1742616035856,0.59561789,84281.0,84280.0,0.20192537]
[1742616043062,0.48158537,84281.0,84280.0,0.20192537]
[1742616044963,0.48158537,84281.0,84280.0,0.32062257]
[1742616046367,0.48158537,84281.0,84280.0,0.20192537]
[1742616046668,0.48158537,84281.0,84280.0,0.32062257]
[1742616050569,0.59569946,84281.0,84280.0,0.32062257]
[1742616060979,0.3608,84293.0,84292.0,0.1186803]
[1742616061178,0.1193988,84293.0,84292.0,0.2907797]
[1742616061383,0.1193988,84293.0,84292.0,0.1726994]
[1742616061682,0.29631485,84293.0,84292.0,0.1726994]
[1742616062074,0.32651485,84293.0,84292.0,0.1726994]
[1742616062267,0.32751485,84293.0,84292.0,0.2380994]
[1742616063079,0.32851485,84293.0,84292.0,0.2380994]
[1742616063283,0.32851485,84293.0,84292.0,0.17876]
[1742616063478,0.35971485,84293.0,84292.0,0.17876]
[1742616063880,0.35971485,84293.0,84292.0,0.2974403]
[1742616066995,0.57322369,84293.0,84292.0,0.2974403]
[1742616067483,0.54202369,84293.0,84292.0,0.2974403]
[1742616067688,0.51182369,84293.0,84292.0,0.2974403]
[1742616069589,0.29831485,84293.0,84292.0,0.2974403]
[1742616070282,0.32921485,84293.0,84292.0,0.2974403]
[1742616071286,0.32921485,84293.0,84292.0,0.1846803]
[1742616071588,0.44784936,84293.0,84292.0,0.0331]
[1742616071789,0.47834936,84293.0,84292.0,0.11332]
[1742616072085,0.1186859,84288.0,84287.0,0.0631]
[1742616072278,0.1194059,84288.0,84287.0,0.17582]
[1742616072497,0.2970282,84288.0,84287.0,0.2951073]
[1742616072712,0.41566975,84288.0,84287.0,0.2951073]
[1742616072906,0.47826975,84288.0,84287.0,0.2951073]
[1742616073416,0.47926975,84288.0,84287.0,0.2961073]
[1742616073913,0.48026975,84288.0,84287.0,0.2961073]
[1742616078110,0.48026975,84288.0,84287.0,0.17742]
[1742616078506,0.48026975,84288.0,84287.0,0.0647]
[1742616078706,0.48026975,84288.0,84287.0,0.17742]
[1742616079217,0.48026975,84288.0,84287.0,0.2961073]
[1742616079401,0.48026975,84288.0,84287.0,0.17742]
[1742616079805,0.48026975,84288.0,84287.0,0.2961073]
[1742616085717,0.48026975,84288.0,84287.0,0.17742]
[1742616092928,0.48026975,84288.0,84287.0,0.2961073]
[1742616093629,0.48026975,84288.0,84287.0,0.17742]
[1742616102637,0.59060177,84288.0,84287.0,0.17742]
[1742616107234,0.59060177,84288.0,84287.0,0.0647]
[1742616107430,0.59060177,84288.0,84287.0,0.17742]
[1742616111535,0.59060177,84288.0,84287.0,0.17682]
[1742616112944,0.59060177,84288.0,84287.0,0.1775]
[1742616113240,0.59060177,84288.0,84287.0,0.0641]
[1742616113438,0.1186957,84281.0,84280.0,0.37825345]
[1742616113635,0.1194157,84281.0,84280.0,0.49161345]
[1742616113832,0.29758959,84281.0,84280.0,0.37885345]
[1742616114029,0.29758959,84281.0,84269.0,0.21289107]
[1742616114030,0.1187098,84271.0,84269.0,0.21289107]
[1742616114237,0.1819112,84270.0,84269.0,0.21349107]
[1742616114439,0.39309605,84270.0,84269.0,0.22927138]
[1742616114840,0.51176294,84270.0,84269.0,0.22927138]
[1742616115146,0.53383443,84270.0,84269.0,0.22927138]